[Event "*** Titled Tuesday Blitz"]
[Site "Chess.com"]
[Date "2020.04.28"]
[Round "5"]
[White "kingofthenil"]
[Black "IAgrest"]
[Result "1-0"]
[WhiteElo "2460"]
[BlackElo "2259"]
[TimeControl "180+1"]
[EndTime "10:56:57 PDT"]
[Termination "kingofthenil won on time"]

1. d4 {[%clk 0:02:51.1]} 1... Nf6 {[%clk 0:02:59.3]} 2. c4 {[%clk 0:02:50.6]}
2... g6 {[%clk 0:02:59.2]} 3. Nc3 {[%clk 0:02:44.2]} 3... Bg7 {[%clk 0:02:59.2]}
4. Nf3 {[%clk 0:02:42.1]} 4... d6 {[%clk 0:02:59.5]} 5. Bg5 {[%clk 0:02:36.4]}
5... h6 {[%clk 0:02:53.3]} 6. Bh4 {[%clk 0:02:35.9]} 6... O-O {[%clk 0:02:53.4]}
7. e3 {[%clk 0:02:29.5]} 7... Nbd7 {[%clk 0:02:34.9]} 8. Be2 {[%clk 0:02:14]}
8... c6 {[%clk 0:02:29.8]} 9. O-O {[%clk 0:02:02.3]} 9... a6 {[%clk 0:02:29.1]}
10. h3 {[%clk 0:02:00.7]} 10... b5 {[%clk 0:02:23.2]} 11. b4 {[%clk 0:01:55.9]}
11... Rb8 {[%clk 0:02:07.8]} 12. Rb1 {[%clk 0:01:32.2]} 12... bxc4 {[%clk
0:01:30.5]} 13. Bxc4 {[%clk 0:01:33.1]} 13... Nb6 {[%clk 0:01:30.2]} 14. Be2
{[%clk 0:01:29.2]} 14... Bf5 {[%clk 0:01:26]} 15. Bd3 {[%clk 0:01:26.9]} 15...
Qd7 {[%clk 0:01:14.1]} 16. a3 {[%clk 0:01:15.5]} 16... Rfc8 {[%clk 0:01:03.1]}
17. Bxa6 {[%clk 0:01:11.2]} 17... Bxb1 {[%clk 0:00:44]} 18. Bxc8 {[%clk
0:01:10]} 18... Qxc8 {[%clk 0:00:44]} 19. Qxb1 {[%clk 0:01:10]} 19... Nc4 {[%clk
0:00:44.2]} 20. Qb3 {[%clk 0:01:04.4]} 20... Qa6 {[%clk 0:00:43.7]} 21. Ra1
{[%clk 0:01:02.9]} 21... d5 {[%clk 0:00:30.7]} 22. Bg3 {[%clk 0:00:59.8]} 22...
Rb7 {[%clk 0:00:29.7]} 23. a4 {[%clk 0:00:54.4]} 23... Nd7 {[%clk 0:00:25]} 24.
b5 {[%clk 0:00:51.9]} 24... Qa8 {[%clk 0:00:24.3]} 25. Qd1 {[%clk 0:00:35.3]}
25... Qc8 {[%clk 0:00:21.8]} 26. Rc1 {[%clk 0:00:33]} 26... e6 {[%clk
0:00:13.7]} 27. Nd2 {[%clk 0:00:28.5]} 27... cxb5 {[%clk 0:00:13]} 28. Nxb5
{[%clk 0:00:27.2]} 28... Qa8 {[%clk 0:00:06.8]} 29. Nxc4 {[%clk 0:00:26.4]}
29... dxc4 {[%clk 0:00:07.5]} 30. Rxc4 {[%clk 0:00:25.2]} 30... Nb6 {[%clk
0:00:07.7]} 31. Rb4 {[%clk 0:00:21.8]} 31... Bf8 {[%clk 0:00:07.4]} 32. Nd6
{[%clk 0:00:18.9]} 32... Bxd6 {[%clk 0:00:06.7]} 33. Bxd6 {[%clk 0:00:19.8]}
33... Nd5 {[%clk 0:00:06.7]} 34. Rxb7 {[%clk 0:00:18.6]} 34... Qxb7 {[%clk
0:00:07.6]} 35. a5 {[%clk 0:00:17.1]} 35... Qa6 {[%clk 0:00:07.5]} 36. Be5
{[%clk 0:00:13.6]} 36... Qxa5 {[%clk 0:00:07.1]} 37. Qc1 {[%clk 0:00:13.2]}
37... Qd8 {[%clk 0:00:06.5]} 38. Qc6 {[%clk 0:00:12.5]} 38... Kh7 {[%clk
0:00:06]} 39. Qb7 {[%clk 0:00:12.1]} 39... Qe8 {[%clk 0:00:05.6]} 40. Qa7 {[%clk
0:00:09.1]} 40... Kg8 {[%clk 0:00:05.2]} 41. h4 {[%clk 0:00:08.6]} 41... h5
{[%clk 0:00:04.6]} 42. Bg3 {[%clk 0:00:06.2]} 42... Kh7 {[%clk 0:00:04.5]} 43.
Qb7 {[%clk 0:00:06.6]} 43... Kg8 {[%clk 0:00:04.7]} 44. Be5 {[%clk 0:00:07]}
44... Kh7 {[%clk 0:00:04.8]} 45. e4 {[%clk 0:00:07.3]} 45... Ne7 {[%clk
0:00:04.5]} 46. Bf6 {[%clk 0:00:06.5]} 46... Ng8 {[%clk 0:00:04.2]} 47. Bg5
{[%clk 0:00:06.6]} 47... Kg7 {[%clk 0:00:03.3]} 48. Be3 {[%clk 0:00:04.3]} 48...
Nf6 {[%clk 0:00:02.9]} 49. Bf4 {[%clk 0:00:03.7]} 49... Nd7 {[%clk 0:00:01.2]}
50. f3 {[%clk 0:00:02.3]} 50... Kg8 {[%clk 0:00:01.4]} 51. Be3 {[%clk
0:00:02.2]} 51... Nf6 {[%clk 0:00:01.6]} 52. Qa7 {[%clk 0:00:02.2]} 52... Nd7
{[%clk 0:00:02]} 53. Bg5 {[%clk 0:00:02.1]} 53... Nf8 {[%clk 0:00:01.7]} 54. d5
{[%clk 0:00:01.9]} 54... exd5 {[%clk 0:00:01.8]} 55. exd5 {[%clk 0:00:02.8]}
55... Qe1+ {[%clk 0:00:01.5]} 56. Kh2 {[%clk 0:00:03.3]} 56... Qe5+ {[%clk
0:00:01.8]} 57. Kh1 {[%clk 0:00:01.3]} 57... Qxd5 {[%clk 0:00:02.3]} 58. Qb8
{[%clk 0:00:01.5]} 58... Qd1+ {[%clk 0:00:02.1]} 59. Kh2 {[%clk 0:00:02.1]}
59... Qd7 {[%clk 0:00:02.2]} 60. Bh6 {[%clk 0:00:02.1]} 60... Qe7 {[%clk
0:00:01.7]} 61. Kg1 {[%clk 0:00:02.3]} 1-0

[Event "*** Titled Tuesday Blitz"]
[Site "Chess.com"]
[Date "2020.04.28"]
[Round "5"]
[White "GOGIEFF"]
[Black "XDPS"]
[Result "1-0"]
[WhiteElo "2988"]
[BlackElo "2772"]
[TimeControl "180+1"]
[EndTime "10:56:59 PDT"]
[Termination "GOGIEFF won by resignation"]

1. d4 {[%clk 0:03:00.9]} 1... d5 {[%clk 0:02:58.7]} 2. c4 {[%clk 0:02:59.9]}
2... e6 {[%clk 0:02:58.9]} 3. Nc3 {[%clk 0:02:59.5]} 3... Nf6 {[%clk 0:02:59.1]}
4. cxd5 {[%clk 0:02:59.1]} 4... exd5 {[%clk 0:02:59.3]} 5. Bg5 {[%clk 0:02:59]}
5... c6 {[%clk 0:02:59.5]} 6. e3 {[%clk 0:02:59.2]} 6... h6 {[%clk 0:02:59.9]}
7. Bh4 {[%clk 0:02:58.4]} 7... Bd6 {[%clk 0:03:00.5]} 8. Bd3 {[%clk 0:02:56.9]}
8... O-O {[%clk 0:03:00.4]} 9. Nge2 {[%clk 0:02:52.9]} 9... Re8 {[%clk
0:02:59.7]} 10. Qc2 {[%clk 0:02:49.3]} 10... a5 {[%clk 0:02:59.4]} 11. h3 {[%clk
0:02:43.8]} 11... Na6 {[%clk 0:02:57.4]} 12. a3 {[%clk 0:02:43.2]} 12... Nc7
{[%clk 0:02:57.1]} 13. O-O {[%clk 0:02:43.1]} 13... Ne6 {[%clk 0:02:53.8]} 14.
Rae1 {[%clk 0:02:38.1]} 14... Bd7 {[%clk 0:02:52.1]} 15. Ng3 {[%clk 0:02:28.4]}
15... Bf8 {[%clk 0:02:25.2]} 16. Nh5 {[%clk 0:02:14]} 16... Be7 {[%clk
0:02:10.6]} 17. Nxf6+ {[%clk 0:02:13.9]} 17... Bxf6 {[%clk 0:02:10.9]} 18. Bg3
{[%clk 0:02:14.8]} 18... Rc8 {[%clk 0:02:07.9]} 19. Na4 {[%clk 0:02:10]} 19...
b5 {[%clk 0:01:35.4]} 20. Nc5 {[%clk 0:02:03.8]} 20... Nxc5 {[%clk 0:01:35.2]}
21. Qxc5 {[%clk 0:02:04.5]} 21... Be7 {[%clk 0:01:33.1]} 22. Qc2 {[%clk
0:02:01.5]} 22... c5 {[%clk 0:01:29]} 23. dxc5 {[%clk 0:01:57.5]} 23... Bxc5
{[%clk 0:01:29.9]} 24. Qd2 {[%clk 0:01:54.5]} 24... b4 {[%clk 0:01:27.7]} 25.
Ra1 {[%clk 0:01:45.3]} 25... Qb6 {[%clk 0:01:23.7]} 26. Rfc1 {[%clk 0:01:35.7]}
26... Be6 {[%clk 0:01:21.2]} 27. axb4 {[%clk 0:01:30.5]} 27... Bxb4 {[%clk
0:01:17.6]} 28. Qe2 {[%clk 0:01:30.8]} 28... Be7 {[%clk 0:01:10.8]} 29. Be5
{[%clk 0:01:28.3]} 29... Bc5 {[%clk 0:00:58.8]} 30. Qf3 {[%clk 0:01:21.4]} 30...
Bf8 {[%clk 0:00:23.2]} 31. Qg3 {[%clk 0:01:14.7]} 31... Qb3 {[%clk 0:00:20.5]}
32. Rd1 {[%clk 0:01:10.3]} 32... a4 {[%clk 0:00:20.5]} 33. Bd4 {[%clk 0:01:09]}
33... Red8 {[%clk 0:00:20.1]} 34. h4 {[%clk 0:01:05.6]} 34... Ra8 {[%clk
0:00:18.9]} 35. h5 {[%clk 0:01:05.1]} 35... Qb8 {[%clk 0:00:19.4]} 36. f4 {[%clk
0:01:03.6]} 36... Qb7 {[%clk 0:00:18.6]} 37. f5 {[%clk 0:01:02.5]} 37... Bc8
{[%clk 0:00:19.1]} 38. f6 {[%clk 0:01:02.8]} 38... Qd7 {[%clk 0:00:16.7]} 39.
fxg7 {[%clk 0:01:02.2]} 39... Bd6 {[%clk 0:00:17.1]} 40. Qh4 {[%clk 0:00:58.7]}
40... Be7 {[%clk 0:00:15.6]} 41. Qf4 {[%clk 0:00:55.5]} 41... Bg5 {[%clk
0:00:15.9]} 42. Qf3 {[%clk 0:00:53.2]} 42... Re8 {[%clk 0:00:16.3]} 43. Rf1
{[%clk 0:00:51.9]} 43... Qe6 {[%clk 0:00:16.2]} 44. Kh1 {[%clk 0:00:48.7]} 44...
Bd7 {[%clk 0:00:16.6]} 45. Rac1 {[%clk 0:00:47.8]} 45... Rac8 {[%clk 0:00:16.2]}
46. Rxc8 {[%clk 0:00:46.5]} 46... Rxc8 {[%clk 0:00:17.1]} 47. Bf5 {[%clk
0:00:43.5]} 47... Qxf5 {[%clk 0:00:16.8]} 48. Qxf5 {[%clk 0:00:44.4]} 48... Bxf5
{[%clk 0:00:17.5]} 49. Rxf5 {[%clk 0:00:44.6]} 49... Rd8 {[%clk 0:00:17]} 50. g4
{[%clk 0:00:43]} 50... Rd7 {[%clk 0:00:17.1]} 51. Kg2 {[%clk 0:00:43.1]} 51...
Rd6 {[%clk 0:00:17.1]} 52. Rf1 {[%clk 0:00:39.8]} 52... f6 {[%clk 0:00:17.3]}
53. Ra1 {[%clk 0:00:39.6]} 53... Ra6 {[%clk 0:00:16.9]} 54. Ra3 {[%clk
0:00:39.4]} 54... Kxg7 {[%clk 0:00:16.4]} 55. b3 {[%clk 0:00:39.8]} 55... Rc6
{[%clk 0:00:16.5]} 56. bxa4 {[%clk 0:00:40]} 56... Rc2+ {[%clk 0:00:17.1]} 57.
Kf3 {[%clk 0:00:39.5]} 57... Bh4 {[%clk 0:00:16.1]} 58. e4 {[%clk 0:00:38.1]}
58... dxe4+ {[%clk 0:00:16.1]} 59. Kxe4 {[%clk 0:00:39]} 59... Rg2 {[%clk
0:00:16.3]} 60. Kf5 {[%clk 0:00:37]} 60... Rd2 {[%clk 0:00:15]} 61. Be3 {[%clk
0:00:37.1]} 61... Rd5+ {[%clk 0:00:15.4]} 62. Ke4 {[%clk 0:00:37.2]} 62... Ra5
{[%clk 0:00:16]} 63. Bd2 {[%clk 0:00:36.8]} 63... Re5+ {[%clk 0:00:16.2]} 64.
Kf3 {[%clk 0:00:37]} 64... Rd5 {[%clk 0:00:15.6]} 65. Be3 {[%clk 0:00:37]} 65...
Be1 {[%clk 0:00:12.9]} 66. Rb3 {[%clk 0:00:34]} 66... f5 {[%clk 0:00:12.8]} 67.
Rb7+ {[%clk 0:00:33.3]} 67... Kg8 {[%clk 0:00:12.6]} 68. gxf5 {[%clk 0:00:26.9]}
68... Rxf5+ {[%clk 0:00:12.6]} 69. Kg4 {[%clk 0:00:27.4]} 69... Re5 {[%clk
0:00:12.8]} 70. Bxh6 {[%clk 0:00:24.8]} 70... Re4+ {[%clk 0:00:13.4]} 71. Kf5
{[%clk 0:00:25]} 71... Rxa4 {[%clk 0:00:13.1]} 72. Bg5 {[%clk 0:00:23.6]} 72...
Ra5+ {[%clk 0:00:11.4]} 73. Kg6 {[%clk 0:00:23.5]} 73... Ra6+ {[%clk 0:00:11.4]}
74. Bf6 {[%clk 0:00:23.6]} 74... Bg3 {[%clk 0:00:11.9]} 75. h6 {[%clk
0:00:22.7]} 1-0

[Event "*** Titled Tuesday Blitz"]
[Site "Chess.com"]
[Date "2020.04.28"]
[Round "5"]
[White "LiamPutnam2008"]
[Black "Saloni1299"]
[Result "0-1"]
[WhiteElo "2538"]
[BlackElo "2327"]
[TimeControl "180+1"]
[EndTime "10:57:00 PDT"]
[Termination "Saloni1299 won by checkmate"]

1. Nf3 {[%clk 0:03:00.9]} 1... d5 {[%clk 0:02:57]} 2. d4 {[%clk 0:02:57]} 2...
Nf6 {[%clk 0:02:57]} 3. Bf4 {[%clk 0:02:56.5]} 3... g6 {[%clk 0:02:56.3]} 4. e3
{[%clk 0:02:50.7]} 4... Bg7 {[%clk 0:02:56.3]} 5. Be2 {[%clk 0:02:49.1]} 5...
O-O {[%clk 0:02:54.9]} 6. O-O {[%clk 0:02:48.7]} 6... c5 {[%clk 0:02:53.6]} 7.
c4 {[%clk 0:02:40.5]} 7... Nc6 {[%clk 0:02:52.4]} 8. Nc3 {[%clk 0:02:38.8]} 8...
cxd4 {[%clk 0:02:51.8]} 9. exd4 {[%clk 0:02:35.7]} 9... dxc4 {[%clk 0:02:49.5]}
10. Be3 {[%clk 0:02:08.7]} 10... Bg4 {[%clk 0:02:37.5]} 11. h3 {[%clk
0:02:00.3]} 11... Be6 {[%clk 0:02:31.3]} 12. Qa4 {[%clk 0:01:43.3]} 12... Qa5
{[%clk 0:02:21]} 13. Ng5 {[%clk 0:01:24.2]} 13... Bd5 {[%clk 0:02:13.4]} 14.
Rac1 {[%clk 0:01:02.3]} 14... Qxa4 {[%clk 0:02:11.8]} 15. Nxa4 {[%clk
0:01:03.2]} 15... b5 {[%clk 0:02:11.2]} 16. Nc5 {[%clk 0:01:01.7]} 16... h6
{[%clk 0:02:10]} 17. Nf3 {[%clk 0:01:00.2]} 17... Ne4 {[%clk 0:02:07]} 18. Nxe4
{[%clk 0:00:55.7]} 18... Bxe4 {[%clk 0:02:07.9]} 19. b3 {[%clk 0:00:56.6]} 19...
Rac8 {[%clk 0:01:56.6]} 20. bxc4 {[%clk 0:00:44.5]} 20... bxc4 {[%clk
0:01:56.1]} 21. Rxc4 {[%clk 0:00:44.1]} 21... Na5 {[%clk 0:01:49.5]} 22. Ra4
{[%clk 0:00:40.2]} 22... Nc6 {[%clk 0:01:37.7]} 23. Nd2 {[%clk 0:00:39]} 23...
Bc2 {[%clk 0:01:36]} 24. Rc4 {[%clk 0:00:38.5]} 24... Na5 {[%clk 0:01:34.8]} 25.
Rxc8 {[%clk 0:00:33.7]} 25... Rxc8 {[%clk 0:01:35.7]} 26. Rc1 {[%clk 0:00:34.3]}
26... Bf5 {[%clk 0:01:34.5]} 27. Rxc8+ {[%clk 0:00:26.3]} 27... Bxc8 {[%clk
0:01:35.4]} 28. Nc4 {[%clk 0:00:26]} 28... Nc6 {[%clk 0:01:33.9]} 29. d5 {[%clk
0:00:25.7]} 29... Nb4 {[%clk 0:01:34]} 30. d6 {[%clk 0:00:24.5]} 30... exd6
{[%clk 0:01:29.9]} 31. Nxd6 {[%clk 0:00:25.4]} 31... Be6 {[%clk 0:01:29]} 32. a3
{[%clk 0:00:24.1]} 32... Nc6 {[%clk 0:01:27.8]} 33. Bf3 {[%clk 0:00:14.3]} 33...
Nd4 {[%clk 0:01:26.8]} 34. Be4 {[%clk 0:00:12.7]} 34... a5 {[%clk 0:01:13.7]}
35. Nb7 {[%clk 0:00:10.2]} 35... Ne2+ {[%clk 0:01:05.2]} 36. Kf1 {[%clk
0:00:09.8]} 36... Nc3 {[%clk 0:01:05.8]} 37. Bd3 {[%clk 0:00:08.4]} 37... a4
{[%clk 0:01:05.9]} 38. Nc5 {[%clk 0:00:08]} 38... Bb3 {[%clk 0:01:04.9]} 39. Bd2
{[%clk 0:00:07.5]} 39... Bd4 {[%clk 0:00:47.2]} 40. Bxc3 {[%clk 0:00:07.5]}
40... Bxc5 {[%clk 0:00:46]} 41. Bb2 {[%clk 0:00:06.8]} 41... f5 {[%clk 0:00:46]}
42. Ke2 {[%clk 0:00:06.3]} 42... Kf7 {[%clk 0:00:45.7]} 43. g4 {[%clk
0:00:06.5]} 43... Ke6 {[%clk 0:00:41.5]} 44. f3 {[%clk 0:00:05.7]} 44... Bd5
{[%clk 0:00:32.1]} 45. Bc2 {[%clk 0:00:04.4]} 45... Bc6 {[%clk 0:00:31.1]} 46.
gxf5+ {[%clk 0:00:03.3]} 46... gxf5 {[%clk 0:00:28.9]} 47. Bd3 {[%clk
0:00:04.2]} 47... f4 {[%clk 0:00:26.3]} 48. Bc4+ {[%clk 0:00:04]} 48... Kf5
{[%clk 0:00:26.5]} 49. Bd3+ {[%clk 0:00:04]} 49... Kg5 {[%clk 0:00:26.7]} 50.
Be4 {[%clk 0:00:04.4]} 50... Bb5+ {[%clk 0:00:26]} 51. Bd3 {[%clk 0:00:04.5]}
51... Bd7 {[%clk 0:00:26.3]} 52. Bc2 {[%clk 0:00:02.8]} 52... Kh4 {[%clk
0:00:26.6]} 53. Bf6+ {[%clk 0:00:02.6]} 53... Kxh3 {[%clk 0:00:26.3]} 54. Bg7
{[%clk 0:00:03.5]} 54... h5 {[%clk 0:00:26.3]} 55. Bf6 {[%clk 0:00:04.4]} 55...
h4 {[%clk 0:00:25.2]} 56. Bg5 {[%clk 0:00:05]} 56... Kg3 {[%clk 0:00:25.1]} 57.
Bd3 {[%clk 0:00:05.2]} 57... h3 {[%clk 0:00:23.2]} 58. Kf1 {[%clk 0:00:03.5]}
58... h2 {[%clk 0:00:23.4]} 59. Bxf4+ {[%clk 0:00:04.1]} 59... Kxf4 {[%clk
0:00:22.3]} 60. Kg2 {[%clk 0:00:04.5]} 60... Bg1 {[%clk 0:00:21.3]} 61. Bc4
{[%clk 0:00:03]} 61... Bc6 {[%clk 0:00:21.4]} 62. Be2 {[%clk 0:00:03]} 62... Bb7
{[%clk 0:00:19.9]} 63. Bd1 {[%clk 0:00:03.6]} 63... Ke3 {[%clk 0:00:19.9]} 64.
Kh1 {[%clk 0:00:03.8]} 64... Kf2 {[%clk 0:00:15.5]} 65. Be2 {[%clk 0:00:01.8]}
65... Bc8 {[%clk 0:00:14]} 66. Bd1 {[%clk 0:00:01.7]} 66... Bh3 {[%clk
0:00:14.2]} 67. Be2 {[%clk 0:00:02]} 67... Bg2# {[%clk 0:00:14.6]} 0-1

[Event "*** Titled Tuesday Blitz"]
[Site "Chess.com"]
[Date "2020.04.28"]
[Round "5"]
[White "Zkid"]
[Black "LionTheLeon_06"]
[Result "1-0"]
[WhiteElo "2810"]
[BlackElo "2657"]
[TimeControl "180+1"]
[EndTime "10:57:05 PDT"]
[Termination "Zkid won by resignation"]

1. e4 {[%clk 0:03:00.9]} 1... c5 {[%clk 0:02:59.6]} 2. Nf3 {[%clk 0:02:59.9]}
2... d6 {[%clk 0:02:59.9]} 3. c3 {[%clk 0:02:59.8]} 3... Nf6 {[%clk 0:02:59.4]}
4. Be2 {[%clk 0:03:00.1]} 4... Bd7 {[%clk 0:02:59]} 5. d3 {[%clk 0:03:00.1]}
5... g6 {[%clk 0:02:58.1]} 6. O-O {[%clk 0:03:00.2]} 6... Bg7 {[%clk 0:02:58.3]}
7. Re1 {[%clk 0:03:00.5]} 7... O-O {[%clk 0:02:56.9]} 8. h3 {[%clk 0:03:00.5]}
8... Nc6 {[%clk 0:02:54.8]} 9. Bf1 {[%clk 0:02:59.1]} 9... Rc8 {[%clk
0:02:46.5]} 10. d4 {[%clk 0:02:57.6]} 10... cxd4 {[%clk 0:02:43.2]} 11. cxd4
{[%clk 0:02:58.5]} 11... e5 {[%clk 0:02:36.9]} 12. d5 {[%clk 0:02:52]} 12... Ne7
{[%clk 0:02:27.2]} 13. Nc3 {[%clk 0:02:50.6]} 13... a6 {[%clk 0:02:23.6]} 14. a4
{[%clk 0:02:47.4]} 14... Nh5 {[%clk 0:02:21.3]} 15. Qb3 {[%clk 0:02:38.9]} 15...
Qc7 {[%clk 0:02:11.7]} 16. Bg5 {[%clk 0:02:31.4]} 16... f6 {[%clk 0:02:03.4]}
17. Be3 {[%clk 0:02:30.9]} 17... h6 {[%clk 0:02:02.7]} 18. Rac1 {[%clk
0:02:22.4]} 18... Qb8 {[%clk 0:02:02.5]} 19. Bb6 {[%clk 0:02:18.6]} 19... f5
{[%clk 0:01:58.5]} 20. exf5 {[%clk 0:02:13.8]} 20... Nxf5 {[%clk 0:01:51.5]} 21.
Ne4 {[%clk 0:02:05]} 21... Nf6 {[%clk 0:01:47.3]} 22. Bd3 {[%clk 0:02:00.5]}
22... Nxe4 {[%clk 0:01:44.5]} 23. Bxe4 {[%clk 0:02:01.4]} 23... Rxc1 {[%clk
0:01:44.2]} 24. Rxc1 {[%clk 0:02:00.6]} 24... Rc8 {[%clk 0:01:44.4]} 25. Rxc8+
{[%clk 0:01:55.7]} 25... Qxc8 {[%clk 0:01:44.2]} 26. Nd2 {[%clk 0:01:55.9]}
26... Qc1+ {[%clk 0:01:41.6]} 27. Nf1 {[%clk 0:01:55.3]} 27... Kh7 {[%clk
0:01:28.5]} 28. g4 {[%clk 0:01:48.6]} 28... Nh4 {[%clk 0:01:11.8]} 29. Be3
{[%clk 0:01:46.5]} 29... Qc7 {[%clk 0:01:09]} 30. Nd2 {[%clk 0:01:42.3]} 30...
Bf6 {[%clk 0:01:04.9]} 31. Nc4 {[%clk 0:01:34]} 31... Be7 {[%clk 0:00:51.9]} 32.
Bb6 {[%clk 0:01:26.5]} 32... Qc8 {[%clk 0:00:48.6]} 33. Qd3 {[%clk 0:01:16]}
33... Kg7 {[%clk 0:00:45]} 34. b3 {[%clk 0:01:12.8]} 34... Qf8 {[%clk
0:00:43.1]} 35. Qg3 {[%clk 0:01:06.2]} 35... Qf6 {[%clk 0:00:34.5]} 36. Na5
{[%clk 0:00:58.9]} 36... Qf8 {[%clk 0:00:20.1]} 37. Nc4 {[%clk 0:00:48.7]} 37...
Kh7 {[%clk 0:00:15.1]} 38. Bc7 {[%clk 0:00:45.9]} 38... Kg7 {[%clk 0:00:09.7]}
39. Nb6 {[%clk 0:00:44.2]} 39... Be8 {[%clk 0:00:06.8]} 40. Nc8 {[%clk 0:00:37]}
40... g5 {[%clk 0:00:05.7]} 41. Qe3 {[%clk 0:00:29.7]} 41... Bg6 {[%clk
0:00:05.7]} 42. Nxe7 {[%clk 0:00:23.5]} 42... Qxe7 {[%clk 0:00:06.6]} 43. Ba5
{[%clk 0:00:18.7]} 43... Bxe4 {[%clk 0:00:05.5]} 44. Qxe4 {[%clk 0:00:19.6]}
44... Qf6 {[%clk 0:00:04.5]} 45. Bb4 {[%clk 0:00:16.7]} 45... Nf3+ {[%clk
0:00:04.7]} 46. Kg2 {[%clk 0:00:16.9]} 46... Nh4+ {[%clk 0:00:04.1]} 47. Kf1
{[%clk 0:00:15.9]} 47... Nf3 {[%clk 0:00:04.2]} 48. Qe3 {[%clk 0:00:14.2]} 48...
Nd4 {[%clk 0:00:04]} 49. Bc3 {[%clk 0:00:13.5]} 49... Nxb3 {[%clk 0:00:02.7]}
50. Qb6 {[%clk 0:00:13.3]} 50... Nd4 {[%clk 0:00:02.2]} 51. Qxb7+ {[%clk
0:00:12.6]} 51... Kg6 {[%clk 0:00:02.6]} 52. Qxa6 {[%clk 0:00:08.9]} 52... h5
{[%clk 0:00:02.4]} 53. Qd3+ {[%clk 0:00:08.4]} 53... Kh6 {[%clk 0:00:02.9]} 54.
Bxd4 {[%clk 0:00:08.8]} 54... exd4 {[%clk 0:00:03.1]} 55. a5 {[%clk 0:00:09.3]}
55... hxg4 {[%clk 0:00:03.5]} 56. hxg4 {[%clk 0:00:10.2]} 56... Qe5 {[%clk
0:00:03.3]} 57. Qh3+ {[%clk 0:00:08.2]} 57... Kg7 {[%clk 0:00:02.9]} 58. Qf3
{[%clk 0:00:08.1]} 58... d3 {[%clk 0:00:01]} 59. Qxd3 {[%clk 0:00:07.7]} 59...
Qa1+ {[%clk 0:00:01.5]} 60. Kg2 {[%clk 0:00:08.3]} 60... Qxa5 {[%clk 0:00:02]}
61. Qf5 {[%clk 0:00:08.8]} 61... Qd2 {[%clk 0:00:02.2]} 62. Qd7+ {[%clk
0:00:09]} 62... Kg8 {[%clk 0:00:01.6]} 63. Qe6+ {[%clk 0:00:09.3]} 63... Kg7
{[%clk 0:00:01.5]} 64. Qe7+ {[%clk 0:00:08.8]} 64... Kg8 {[%clk 0:00:01.6]} 65.
Qxd6 {[%clk 0:00:09.3]} 65... Qd4 {[%clk 0:00:02]} 66. Qg6+ {[%clk 0:00:08.7]}
66... Kf8 {[%clk 0:00:02.5]} 67. Qf5+ {[%clk 0:00:07.8]} 67... Ke8 {[%clk
0:00:02.2]} 68. Qxg5 {[%clk 0:00:08.2]} 68... Qe4+ {[%clk 0:00:02.8]} 69. Kg3
{[%clk 0:00:08.2]} 69... Qd3+ {[%clk 0:00:02.7]} 70. Qe3+ {[%clk 0:00:08.3]}
70... Qxe3+ {[%clk 0:00:02.4]} 71. fxe3 {[%clk 0:00:09.2]} 1-0